bitfinex/quotes_SOLUSD_20241105
["timestamp","ask_amount","ask_price","bid_price","bid_amount"]
[1730794721455,97.1772606,162.32,162.31,0.3137304]
[1730794721764,97.1772606,162.32,162.23,0.3137304]
[1730794721765,20.22549,162.28,162.23,0.3137304]
[1730794721939,9.33266132,162.25,162.23,0.3137304]
[1730794722664,9.33266132,162.26,162.23,0.3137304]
[1730794723365,15.49586132,162.26,162.23,0.3137304]
[1730794726659,9.33266132,162.25,162.23,0.3137304]
[1730794728968,15.49606132,162.25,162.23,0.3137304]
[1730794730274,9.33266132,162.24,162.23,0.3137304]
[1730794731075,15.49606132,162.25,162.23,0.3137304]
[1730794731981,6.1634,162.25,162.23,0.3137304]
[1730794733588,9.33266132,162.25,162.23,0.3137304]
[1730794734278,9.33266132,162.26,162.23,0.3137304]
[1730794734868,6.1633,162.25,162.23,0.3137304]
[1730794735084,0.12549,162.24,162.23,0.3137304]
[1730794735287,29.55815132,162.24,162.23,0.3137304]
[1730794735478,29.45815132,162.24,162.23,0.3137304]
[1730794735982,29.80913132,162.24,162.23,0.3137304]
[1730794736184,29.80913132,162.24,162.23,3.04e-05]
[1730794736185,97.5378606,162.24,162.23,3.04e-05]
[1730794736888,103.7015606,162.24,162.23,3.04e-05]
[1730794737857,103.7015606,162.24,162.15,0.3137304]
[1730794737858,70.1,162.21,162.15,0.3137304]
[1730794738183,9.33266132,162.17,162.15,0.3137304]
[1730794739468,9.33266132,162.18,162.15,0.3137304]
[1730794740265,6.1656,162.19,162.15,0.3137304]
[1730794740266,9.33266132,162.16,162.15,0.3137304]
[1730794740467,29.33266132,162.16,162.15,0.3137304]
[1730794740684,29.45815132,162.16,162.15,0.3137304]
[1730794740886,29.80913132,162.16,162.15,0.3137304]
[1730794741485,35.97583132,162.16,162.15,0.3137304]
[1730794742289,97.1833606,162.16,162.15,0.3137304]
[1730794742869,97.1833606,162.16,162.07,0.3137304]
[1730794742870,20.22549,162.11,162.07,0.3137304]
[1730794743075,9.33266132,162.09,162.07,0.3137304]
[1730794743389,26.1694,162.09,162.07,0.3137304]
[1730794743587,6.169,162.1,162.07,9.64639172]
[1730794743773,20.0,162.09,162.07,0.3137304]
[1730794745690,26.1694,162.09,162.07,0.3137304]
[1730794747500,20.0,162.1,162.07,0.3137304]
[1730794747792,20.0,162.09,162.07,0.3137304]
[1730794748292,9.33266132,162.11,162.07,9.64639172]
[1730794748495,29.33266132,162.1,162.07,0.3137304]
[1730794749096,29.43266132,162.11,162.07,0.3137304]
[1730794749666,20.0,162.09,162.07,0.3137304]
[1730794749865,20.0,162.11,162.08,9.33266132]
[1730794750892,20.0,162.11,162.07,9.64639172]
[1730794751399,29.33266132,162.11,162.07,9.64639172]
[1730794751697,20.0,162.12,162.09,9.33266132]
[1730794752293,20.0,162.12,162.08,9.33266132]
[1730794752879,20.0,162.12,162.09,9.33266132]
[1730794753584,6.1686,162.11,162.08,9.33266132]
[1730794753789,29.33266132,162.1,162.07,0.3137304]
[1730794754172,20.0,162.1,162.07,0.3137304]
[1730794754503,20.0,162.1,162.07,9.64639172]
[1730794755678,26.1692,162.1,162.07,9.64639172]
[1730794756101,6.1692,162.1,162.08,9.33266132]
[1730794756811,20.0,162.12,162.09,9.33266132]
[1730794756998,20.0,162.12,162.1,9.33266132]
[1730794757203,20.0,162.12,162.07,0.3137304]
[1730794757204,20.0,162.12,162.09,9.33266132]
[1730794757405,20.0,162.12,162.08,9.33266132]
[1730794757784,26.1685,162.12,162.09,9.33266132]
[1730794757989,6.1667,162.16,162.11,9.33266132]
[1730794758193,6.1667,162.16,162.13,9.33266132]
[1730794758396,6.1667,162.16,162.12,9.33266132]
[1730794758781,15.49936132,162.16,162.12,9.33266132]
[1730794759087,15.49936132,162.16,162.11,9.33266132]
[1730794759407,9.33266132,162.15,162.11,9.33266132]
[1730794759775,6.1667,162.16,162.12,9.33266132]
[1730794759999,6.1663,162.18,162.13,9.33266132]
[1730794760209,6.1663,162.18,162.14,9.33266132]
[1730794760409,12.27385948,162.2,162.16,9.33266132]
[1730794760616,6.1656,162.19,162.17,9.33266132]
[1730794760913,6.1656,162.19,162.16,9.33266132]
[1730794761276,6.1656,162.19,162.15,9.33266132]
[1730794762281,15.49826132,162.19,162.15,9.33266132]
[1730794762713,9.33266132,162.16,162.12,9.33266132]
[1730794763193,9.33266132,162.17,162.13,9.33266132]
[1730794763913,29.33266132,162.18,162.13,9.33266132]
[1730794764908,15.49896132,162.17,162.13,9.33266132]
[1730794765086,20.0,162.16,162.13,9.33266132]
[1730794765698,20.0,162.16,162.12,9.33266132]
[1730794765893,9.33266132,162.15,162.1,9.33266132]
[1730794766104,9.33266132,162.14,162.1,9.33266132]
[1730794766310,9.33266132,162.15,162.1,9.33266132]
[1730794767134,20.0,162.14,162.12,9.33266132]
[1730794767405,20.0,162.16,162.13,9.33266132]
[1730794768611,20.0,162.18,162.14,9.33266132]
[1730794768786,26.1659,162.18,162.14,9.33266132]
[1730794769685,35.49856132,162.18,162.13,9.33266132]
[1730794770186,9.33266132,162.14,162.1,15.4225]
[1730794770388,9.33266132,162.14,162.09,25.77626132]
[1730794770905,9.33266132,162.13,162.09,9.33266132]
[1730794771911,15.50086132,162.12,162.08,9.33266132]
[1730794773610,9.33266132,162.13,162.08,9.33266132]
[1730794774195,9.33266132,162.13,162.09,9.33266132]
[1730794774992,15.50016132,162.14,162.09,9.33266132]
[1730794775305,6.1675,162.14,162.1,9.33266132]
[1730794775514,6.1675,162.14,162.11,9.33266132]
[1730794775815,6.1675,162.14,162.1,9.33266132]
[1730794777706,6.1675,162.14,162.11,9.33266132]
[1730794778819,9.33266132,162.16,162.12,9.33266132]
[1730794778820,6.1671,162.15,162.12,9.33266132]
[1730794780118,20.0,162.17,162.13,9.33266132]
[1730794780319,20.0,162.17,162.14,9.33266132]
[1730794780526,29.33266132,162.17,162.13,9.33266132]
[1730794780731,29.33266132,162.17,162.12,9.33266132]
[1730794781724,6.1667,162.16,162.12,9.33266132]
[1730794781918,6.1667,162.16,162.11,9.33266132]
[1730794781919,15.49936132,162.16,162.11,9.33266132]
[1730794782230,9.33266132,162.15,162.1,24.75446132]
[1730794783222,6.1675,162.14,162.1,24.75446132]
[1730794784224,6.1675,162.14,162.11,9.33266132]
[1730794785427,6.1671,162.15,162.11,9.33266132]
[1730794785632,15.49976132,162.15,162.11,9.33266132]
[1730794785819,29.33266132,162.13,162.09,9.33266132]
[1730794788533,6.1682,162.12,162.09,9.33266132]
[1730794789034,6.1682,162.12,162.07,29.1321304]
[1730794789232,20.0,162.11,162.08,9.33266132]
[1730794789415,29.33266132,162.11,162.07,9.64639172]
[1730794789614,9.33266132,162.11,162.07,9.64639172]
[1730794789931,6.1682,162.12,162.07,9.64639172]
[1730794789932,15.50086132,162.12,162.07,9.64639172]
[1730794790310,15.50086132,162.12,162.07,0.3137304]
[1730794790635,15.50086132,162.12,162.08,9.33266132]
[1730794791128,20.0,162.11,162.07,9.64639172]
[1730794791549,29.33266132,162.11,162.07,0.3137304]
[1730794792412,9.33266132,162.1,162.07,0.3137304]
[1730794792627,6.1694,162.09,162.07,0.3137304]
[1730794793616,6.169,162.1,162.07,0.3137304]
[1730794793816,6.169,162.1,162.07,9.64639172]
[1730794794717,6.169,162.1,162.07,0.3137304]
[1730794795314,6.169,162.1,162.07,9.64639172]
[1730794797956,6.169,162.1,162.07,0.3137304]
[1730794798617,6.169,162.1,162.07,9.64639172]
[1730794800631,6.169,162.1,162.07,0.3137304]
[1730794800939,6.169,162.1,162.07,9.64639172]
[1730794802124,6.169,162.1,162.08,9.33266132]
[1730794802923,15.6187,162.15,162.07,0.3137304]
[1730794802924,6.1671,162.15,162.09,9.33266132]
[1730794803128,15.49976132,162.15,162.1,9.33266132]
[1730794803634,9.33266132,162.14,162.07,21.9090304]
[1730794803954,9.33266132,162.14,162.09,9.33266132]
[1730794804124,6.1678,162.13,162.09,9.33266132]
[1730794804326,15.50046132,162.13,162.08,9.33266132]
[1730794804631,9.33266132,162.11,162.07,9.64639172]
[1730794805323,9.45815132,162.12,162.07,9.64639172]
[1730794805637,20.0,162.12,162.08,9.33266132]
[1730794805844,20.0,162.12,162.09,9.33266132]
[1730794806443,26.1683,162.12,162.1,9.33266132]
[1730794806663,6.1683,162.12,162.1,9.33266132]
[1730794808017,6.1678,162.13,162.1,9.33266132]
[1730794809226,9.33266132,162.15,162.12,9.33266132]
[1730794809227,6.1674,162.15,162.12,9.33266132]
[1730794809553,6.1674,162.15,162.13,9.33266132]
[1730794809739,6.1665,162.17,162.14,9.33266132]
[1730794811032,20.0,162.16,162.14,9.33266132]
[1730794811228,26.1663,162.17,162.13,9.33266132]
[1730794811436,35.49896132,162.17,162.13,9.33266132]
[1730794812643,26.1663,162.17,162.15,9.33266132]
[1730794812821,20.0,162.18,162.15,9.33266132]
[1730794813152,20.0,162.16,162.09,22.1152]
[1730794813326,20.0,162.16,162.12,9.33266132]
[1730794813327,29.33266132,162.16,162.12,9.33266132]
[1730794813528,29.33266132,162.16,162.09,22.1152]
[1730794813529,9.33266132,162.15,162.1,9.33266132]
[1730794813928,9.33266132,162.15,162.11,9.33266132]
[1730794814548,20.0,162.14,162.11,9.33266132]
[1730794814841,6.1678,162.13,162.1,9.33266132]
[1730794815051,6.1678,162.13,162.07,21.9081304]
[1730794815052,29.33266132,162.11,162.07,0.3137304]
[1730794815235,9.33266132,162.1,162.07,0.3137304]
[1730794816455,6.1694,162.09,162.07,0.3137304]
[1730794819254,29.33266132,162.11,162.07,0.3137304]
[1730794819446,6.169,162.1,162.07,0.3137304]
[1730794820051,6.169,162.1,162.07,9.64639172]
[1730794833436,6.169,162.1,162.07,0.3137304]
[1730794836768,15.50166132,162.1,162.07,0.3137304]
[1730794840263,20.0,162.08,162.07,0.3137304]
[1730794842054,26.1697,162.08,162.07,0.3137304]
[1730794848071,35.50236132,162.08,162.07,0.3137304]
[1730794851555,26.1697,162.08,162.07,0.3137304]
[1730794851855,35.50236132,162.08,162.07,0.3137304]
[1730794852250,35.60236132,162.08,162.07,0.3137304]
[1730794852675,35.50236132,162.08,162.07,0.3137304]
[1730794854751,26.1697,162.08,162.07,0.3137304]
[1730794857772,35.50236132,162.08,162.07,0.3137304]
[1730794859578,26.1697,162.08,162.07,0.3137304]
[1730794859962,35.50236132,162.08,162.07,0.3137304]
[1730794860377,26.1697,162.08,162.07,0.3137304]
[1730794863481,13.84820899,162.13,162.07,9.64639172]
[1730794863662,6.1678,162.13,162.09,9.33266132]
[1730794863859,15.50046132,162.13,162.08,9.33266132]
[1730794865152,6.1686,162.11,162.08,9.33266132]
[1730794865378,6.1686,162.11,162.09,9.33266132]
[1730794866277,6.1686,162.11,162.08,9.33266132]
[1730794867377,9.33266132,162.09,162.07,0.3137304]
[1730794867600,29.33266132,162.08,162.07,0.3137304]
[1730794869483,35.50236132,162.08,162.07,0.3137304]
[1730794871583,26.1697,162.08,162.07,0.3137304]
[1730794873481,35.50236132,162.08,162.07,0.3137304]
[1730794876888,26.1697,162.08,162.07,0.3137304]
[1730794877396,35.50236132,162.08,162.07,0.3137304]
[1730794882188,73.3094766,162.08,162.07,0.3137304]
[1730794883966,35.97883132,162.08,162.07,0.3137304]
[1730794885766,35.62785132,162.08,162.07,0.3137304]
[1730794886906,35.50236132,162.08,162.07,0.3137304]
[1730794887075,6.1697,162.08,162.07,0.3137304]
[1730794887277,15.50206132,162.09,162.07,0.3137304]
[1730794888290,9.33266132,162.08,162.07,0.3137304]
[1730794888879,29.33266132,162.08,162.07,0.3137304]
[1730794889593,26.1697,162.08,162.07,0.3137304]
[1730794892306,35.50236132,162.08,162.07,0.3137304]
[1730794892473,35.62785132,162.08,162.07,0.3137304]
[1730794895273,26.1697,162.08,162.07,0.3137304]
[1730794896076,35.50236132,162.08,162.07,0.3137304]
[1730794905506,26.1697,162.08,162.07,0.3137304]
[1730794906600,35.50236132,162.08,162.07,0.3137304]
[1730794907902,26.1697,162.08,162.07,0.3137304]
[1730794908306,35.50236132,162.08,162.07,0.3137304]
[1730794908991,26.1697,162.08,162.07,0.3137304]
[1730794920600,6.1686,162.11,162.07,9.64639172]
[1730794920800,6.1686,162.11,162.1,9.33266132]
[1730794921002,15.7934,162.16,162.1,9.33266132]
[1730794921003,6.1667,162.16,162.1,9.33266132]
[1730794921208,6.1667,162.16,162.12,9.33266132]
[1730794921499,15.49936132,162.16,162.11,9.33266132]
[1730794922297,29.33266132,162.15,162.11,9.33266132]
[1730794922504,29.33266132,162.15,162.1,9.33266132]
[1730794923704,6.1675,162.14,162.1,9.33266132]
[1730794925108,6.1675,162.14,162.11,9.33266132]
[1730794925500,6.1675,162.14,162.12,9.33266132]
[1730794925718,20.0,162.15,162.13,9.33266132]
[1730794926521,6.1671,162.16,162.09,21.5928]
[1730794926522,6.1671,162.16,162.14,9.33266132]
[1730794926820,6.1671,162.16,162.13,9.33266132]
[1730794927319,18.44205647,162.18,162.15,9.33266132]
[1730794927529,12.27575647,162.18,162.16,9.33266132]
[1730794927824,12.27575647,162.18,162.17,9.33266132]
[1730794928128,12.27575647,162.18,162.16,9.33266132]
[1730794928423,18.44195647,162.18,162.13,37.527]
[1730794928602,18.44195647,162.18,162.14,9.33266132]
[1730794928808,9.33266132,162.17,162.13,31.43996132]
[1730794929395,15.49926132,162.17,162.13,22.1073]
[1730794929610,9.33266132,162.15,162.11,9.33266132]
[1730794930003,20.0,162.16,162.13,9.33266132]
[1730794930318,12.27575647,162.18,162.15,9.33266132]
[1730794930619,12.27575647,162.18,162.16,9.33266132]
[1730794930827,18.44185647,162.18,162.15,9.33266132]
[1730794932701,18.44185647,162.18,162.16,9.33266132]
[1730794933918,12.27575647,162.18,162.17,9.33266132]
[1730794934809,6.1639,162.24,162.17,33.10954532]
[1730794935015,6.1639,162.24,162.22,9.33266132]
[1730794935206,6.1639,162.24,162.21,9.33266132]
[1730794935821,9.33266132,162.25,162.2,9.33266132]
[1730794936211,20.0,162.24,162.2,9.33266132]
[1730794937009,20.0,162.24,162.18,6.1657]
[1730794937010,35.49666132,162.24,162.18,6.1657]
[1730794937213,35.49666132,162.24,162.2,9.33266132]
[1730794937411,26.164,162.24,162.2,9.33266132]
[1730794937714,35.49666132,162.24,162.19,9.33266132]
[1730794938017,35.49666132,162.24,162.16,6.4937]
[1730794938018,9.33266132,162.21,162.16,15.82636132]
[1730794938327,9.33266132,162.22,162.17,9.33266132]
[1730794938535,9.33266132,162.22,162.16,6.4937]
[1730794938536,9.33266132,162.22,162.18,9.33266132]
[1730794938716,9.33266132,162.23,162.18,9.33266132]
[1730794939224,6.1648,162.21,162.18,9.33266132]
[1730794940137,9.33266132,162.22,162.16,6.4937]
[1730794940306,9.33266132,162.22,162.18,9.33266132]
[1730794941124,20.0,162.22,162.18,9.33266132]
[1730794941314,6.1648,162.21,162.18,9.33266132]
[1730794941631,9.33266132,162.19,162.12,6.5188]
[1730794941834,20.0,162.2,162.12,6.5188]
[1730794941835,9.33266132,162.17,162.13,9.33266132]
[1730794943031,9.33266132,162.18,162.13,9.33266132]
[1730794943213,20.0,162.17,162.13,9.33266132]
[1730794943532,26.1665,162.17,162.13,9.33266132]
[1730794944227,9.33266132,162.16,162.11,15.6667]
[1730794944624,9.33266132,162.15,162.11,9.33266132]
[1730794944809,9.33266132,162.16,162.11,9.33266132]
[1730794945007,9.33266132,162.16,162.12,9.33266132]
[1730794945405,20.0,162.17,162.14,9.33266132]
[1730794945607,6.1668,162.16,162.14,9.33266132]
[1730794946038,20.0,162.15,162.11,9.33266132]
[1730794946824,6.1675,162.14,162.11,9.33266132]
[1730794947240,20.0,162.15,162.11,9.33266132]
[1730794947406,41.70629,162.18,162.11,9.33266132]
[1730794947613,9.33266132,162.15,162.11,9.33266132]
[1730794948639,9.33266132,162.15,162.1,9.33266132]
[1730794948842,9.33266132,162.14,162.1,9.33266132]
[1730794949455,9.33266132,162.14,162.08,6.5829]
[1730794949641,9.33266132,162.14,162.09,9.33266132]
[1730794949829,6.1678,162.13,162.1,9.33266132]
[1730794950436,6.1678,162.13,162.09,9.33266132]
[1730794951831,15.50046132,162.13,162.09,9.33266132]
[1730794953144,6.1678,162.13,162.09,9.33266132]
[1730794954746,6.1678,162.13,162.1,9.33266132]
[1730794955043,9.33266132,162.15,162.1,9.33266132]
[1730794955344,20.0,162.14,162.1,9.33266132]
[1730794956029,9.33266132,162.14,162.1,9.33266132]
[1730794956225,20.0,162.13,162.1,9.33266132]
[1730794956916,20.0,162.14,162.11,9.33266132]
[1730794957116,20.0,162.15,162.11,9.33266132]
[1730794957436,20.0,162.15,162.12,9.33266132]
[1730794958039,20.0,162.15,162.11,9.33266132]
[1730794958530,6.1675,162.14,162.11,9.33266132]
[1730794958925,6.1675,162.14,162.1,9.33266132]
[1730794960220,6.1675,162.14,162.11,9.33266132]
[1730794960534,9.33266132,162.12,162.07,16.3671304]
[1730794960734,6.1675,162.14,162.1,9.33266132]
[1730794960938,15.50016132,162.14,162.1,9.33266132]
[1730794961120,6.1675,162.14,162.1,9.33266132]
[1730794961750,85.5167,162.17,162.12,9.33266132]
[1730794961751,26.1667,162.16,162.12,9.33266132]
[1730794962060,35.49936132,162.16,162.12,9.33266132]
[1730794962219,35.49936132,162.16,162.07,37.9626304]
[1730794962220,35.49936132,162.16,162.11,9.33266132]
[1730794962422,9.33266132,162.15,162.11,9.33266132]
[1730794962837,6.1675,162.14,162.11,9.33266132]
[1730794965240,6.1675,162.14,162.08,6.1696]
[1730794965241,29.33266132,162.13,162.07,16.3671304]
[1730794965625,9.33266132,162.12,162.08,9.33266132]
[1730794965850,9.33266132,162.13,162.08,9.33266132]
[1730794966636,9.33266132,162.12,162.08,9.33266132]
[1730794967446,6.1686,162.11,162.08,9.33266132]
[1730794968265,6.1686,162.11,162.07,0.3137304]
[1730794968465,6.1686,162.11,162.08,9.33266132]
[1730794970239,9.33266132,162.13,162.08,9.33266132]
[1730794970441,15.50046132,162.13,162.08,9.33266132]
[1730794970661,9.33266132,162.1,162.07,0.3137304]
[1730794972364,6.1694,162.09,162.07,0.3137304]
[1730794974969,9.33266132,162.09,162.07,0.3137304]
[1730794975665,15.50126132,162.11,162.07,0.3137304]
[1730794975864,15.50126132,162.11,162.08,9.33266132]
[1730794975865,6.1686,162.11,162.08,9.33266132]
[1730794977462,9.33266132,162.11,162.07,9.64639172]
[1730794977858,9.33266132,162.11,162.07,0.3137304]
[1730794978165,9.33266132,162.11,162.07,9.64639172]
[1730794978543,15.50126132,162.11,162.07,9.64639172]
[1730794978746,6.1686,162.11,162.07,9.64639172]
[1730794979052,9.33266132,162.12,162.08,9.33266132]
[1730794979352,15.50106132,162.12,162.08,9.33266132]
[1730794980071,9.33266132,162.13,162.08,9.33266132]
[1730794980253,35.50046132,162.14,162.1,9.33266132]
[1730794980456,35.50046132,162.14,162.09,9.33266132]
[1730794980647,26.1678,162.14,162.09,9.33266132]
[1730794980967,35.50046132,162.14,162.09,9.33266132]
[1730794982041,15.4167,162.17,162.12,9.33266132]
[1730794982042,6.1663,162.17,162.12,9.33266132]
[1730794982347,6.1663,162.17,162.13,9.33266132]
[1730794983240,15.7489,162.19,162.08,52.72464528]
[1730794983241,15.7489,162.19,162.14,9.33266132]
[1730794983444,15.739131,162.22,162.17,9.33266132]
[1730794983663,9.33266132,162.23,162.18,9.33266132]
[1730794984179,9.33266132,162.22,162.17,9.33266132]
[1730794985061,6.1648,162.21,162.17,9.33266132]
[1730794985662,15.49746132,162.21,162.17,9.33266132]
[1730794986353,15.49746132,162.21,162.16,9.33266132]
[1730794986868,15.49706132,162.23,162.19,9.33266132]
[1730794987063,15.49706132,162.23,162.15,21.5849]
[1730794987064,15.49706132,162.23,162.18,9.33266132]
[1730794987269,9.33266132,162.22,162.18,9.33266132]
[1730794988144,15.49726132,162.22,162.16,6.1664]
[1730794988368,9.33266132,162.21,162.17,9.33266132]
[1730794988573,9.33266132,162.18,162.13,6.4319]
[1730794988747,9.33266132,162.17,162.13,15.76456132]
[1730794989559,9.33266132,162.18,162.13,6.4319]
[1730794989768,9.33266132,162.17,162.12,21.5887]
[1730794989971,9.33266132,162.16,162.12,30.92136132]
[1730794991055,9.33266132,162.16,162.12,15.4205]
[1730794991256,9.33266132,162.16,162.12,24.75316132]
[1730794992083,9.33266132,162.16,162.11,9.33266132]
[1730794992672,9.33266132,162.15,162.11,9.33266132]
[1730794994464,9.33266132,162.14,162.1,24.48476132]
[1730794994867,15.49996132,162.15,162.1,24.48476132]
[1730794996266,15.49996132,162.15,162.11,9.33266132]
[1730794996778,6.1663,162.17,162.13,9.33266132]
[1730794997148,9.33266132,162.16,162.11,30.92286132]
[1730794997377,9.33266132,162.14,162.11,15.4216]
[1730794997679,9.33266132,162.13,162.09,6.2407]
[1730794997877,9.33266132,162.13,162.09,15.57336132]
[1730795000380,70.0,162.18,162.07,9.64639172]
[1730795000381,9.33266132,162.11,162.07,9.64639172]
[1730795001377,9.33266132,162.11,162.07,0.3137304]
[1730795001578,9.33266132,162.09,162.07,0.3137304]
[1730795001782,9.33266132,162.08,162.07,0.3137304]
[1730795003261,15.50236132,162.08,162.07,0.3137304]
[1730795003774,9.33266132,162.08,162.07,0.3137304]
[1730795008398,6.1697,162.09,162.07,0.3137304]
[1730795008570,9.33266132,162.08,162.07,0.3137304]
[1730795012909,6.169,162.1,162.07,0.3137304]
[1730795013082,9.33266132,162.08,162.07,0.3137304]
[1730795014586,9.33266132,162.1,162.07,0.3137304]
[1730795014794,6.1678,162.13,162.07,6.4837304]
[1730795015100,6.1678,162.13,162.07,0.3137304]
[1730795015101,9.33266132,162.11,162.07,0.3137304]
[1730795016178,9.33266132,162.1,162.07,0.3137304]
[1730795018008,9.33266132,162.11,162.07,0.3137304]
[1730795019079,6.1687,162.11,162.07,9.64639172]
[1730795019398,9.33266132,162.14,162.1,9.33266132]
[1730795019600,9.33266132,162.15,162.1,9.33266132]
[1730795019806,6.1663,162.17,162.11,9.33266132]
[1730795020101,9.33266132,162.15,162.11,9.33266132]
[1730795020302,9.33266132,162.15,162.1,9.33266132]
[1730795021101,6.1675,162.14,162.1,9.33266132]
[1730795022803,6.1672,162.15,162.12,9.33266132]
[1730795022996,6.1667,162.16,162.12,9.33266132]
[1730795023304,15.49936132,162.16,162.12,9.33266132]
[1730795023706,15.49936132,162.16,162.1,6.1689]
[1730795023878,9.33266132,162.13,162.07,0.3137304]
[1730795024080,21.5835,162.16,162.1,9.33266132]
[1730795024081,20.0,162.15,162.1,9.33266132]
[1730795024289,29.33266132,162.15,162.1,9.33266132]
[1730795025191,6.1675,162.14,162.1,9.33266132]
[1730795025703,9.33266132,162.13,162.07,15.7391304]
[1730795025916,9.33266132,162.13,162.08,9.33266132]
[1730795026782,6.1682,162.12,162.08,9.33266132]
[1730795027710,15.50086132,162.12,162.07,25.07179172]
[1730795028212,9.33266132,162.11,162.07,25.07179172]
[1730795028407,9.33266132,162.11,162.07,0.3137304]
[1730795029518,9.33266132,162.1,162.07,0.3137304]
[1730795030393,9.33266132,162.08,162.07,0.3137304]
[1730795031435,15.50236132,162.08,162.07,0.3137304]
[1730795037292,73.0839866,162.08,162.07,0.3137304]
[1730795037491,143.0839866,162.08,162.07,0.3137304]
[1730795039818,143.0839866,162.08,161.98,0.3137304]
[1730795039819,0.22549,162.07,161.98,0.3137304]
[1730795040032,9.33266132,162.0,161.98,0.3137304]
[1730795040799,9.33266132,162.01,161.98,0.3137304]
[1730795041102,29.33266132,161.99,161.98,0.3137304]
[1730795041719,20.0,161.99,161.98,0.3137304]
[1730795042104,29.33266132,161.99,161.98,0.3137304]
[1730795042824,90.25098,161.98,161.9,15.3691304]
[1730795043022,9.33266132,161.92,161.9,15.3691304]
[1730795043438,9.33266132,161.93,161.9,15.3691304]
[1730795043938,20.0,161.99,161.91,9.33266132]
[1730795044108,9.33266132,161.96,161.91,9.33266132]
[1730795044307,9.33266132,161.95,161.9,36.9872304]
[1730795044616,20.0,161.99,161.9,36.9872304]
[1730795044617,9.33266132,161.94,161.9,36.9872304]
[1730795044918,9.33266132,161.95,161.9,46.31989172]
[1730795045121,9.33266132,161.94,161.9,36.9872304]
[1730795046325,9.33266132,161.93,161.9,15.3691304]
[1730795046528,9.33266132,161.92,161.9,15.3691304]
[1730795046719,9.33266132,161.93,161.9,15.3691304]
[1730795049438,15.50816132,161.93,161.9,15.3691304]
[1730795049637,15.50816132,161.93,161.9,0.3137304]
[1730795050411,9.33266132,161.92,161.9,0.3137304]
[1730795051734,15.50816132,161.93,161.9,0.3137304]
[1730795056625,9.33266132,161.92,161.9,0.3137304]
[1730795058248,15.50846132,161.92,161.9,0.3137304]
[1730795060545,9.33266132,161.91,161.9,0.3137304]
[1730795060926,15.50846132,161.92,161.9,0.3137304]
[1730795061128,9.33266132,161.91,161.9,0.3137304]
[1730795061634,9.33266132,161.92,161.9,0.3137304]
[1730795063650,15.50866132,161.92,161.9,0.3137304]
[1730795066223,9.33266132,161.91,161.9,0.3137304]
[1730795066626,9.33266132,161.92,161.9,0.3137304]
[1730795067857,9.33266132,161.91,161.9,0.3137304]
[1730795069728,15.50886132,161.91,161.9,0.3137304]
[1730795070545,50.86606132,161.91,161.9,0.3137304]
[1730795075739,75.11941532,161.91,161.9,0.3137304]
[1730795075948,75.01941532,161.91,161.9,0.3137304]
[1730795081448,6.1762,161.91,161.9,0.3137304]
[1730795081642,15.50886132,161.91,161.9,0.3137304]
[1730795083155,35.50886132,161.91,161.9,0.3137304]
[1730795083346,26.1762,161.91,161.9,0.3137304]
[1730795083552,35.50886132,161.91,161.9,0.3137304]
[1730795086138,20.0,161.91,161.9,0.3137304]
[1730795086341,20.0,161.93,161.9,0.3137304]
[1730795086555,9.33266132,161.92,161.9,0.3137304]
[1730795086765,29.33266132,161.93,161.9,0.3137304]
[1730795087535,6.1751,161.94,161.9,0.3137304]
[1730795087536,15.50776132,161.94,161.9,0.3137304]
[1730795088360,15.50776132,161.94,161.9,9.64639172]
[1730795089067,29.33266132,161.91,161.9,0.3137304]
[1730795089234,20.0,161.93,161.9,0.3137304]
[1730795089649,15.50776132,161.94,161.9,0.3137304]
[1730795089944,9.33266132,161.96,161.91,9.33266132]
[1730795090968,15.50706132,161.96,161.91,9.33266132]
[1730795092368,9.33266132,161.95,161.9,31.26429172]
[1730795092948,6.1749,161.95,161.9,25.08799172]
[1730795093372,15.50756132,161.95,161.9,25.08799172]
[1730795093668,26.29869,161.99,161.91,9.33266132]
[1730795093961,9.33266132,161.95,161.91,9.33266132]
[1730795094368,9.33266132,161.95,161.9,31.26459172]
[1730795094667,15.50756132,161.95,161.9,31.26459172]
[1730795095066,15.50756132,161.95,161.91,9.33266132]
[1730795098367,9.33266132,161.94,161.9,0.3137304]
[1730795099774,6.1755,161.93,161.9,0.3137304]
[1730795100272,6.1755,161.93,161.9,9.64639172]
[1730795101464,6.1755,161.93,161.9,0.3137304]
[1730795104278,6.1739,161.97,161.92,9.33266132]
[1730795104449,6.1739,161.97,161.93,9.33266132]
[1730795104956,15.50656132,161.97,161.92,9.33266132]
[1730795105562,6.1739,161.97,161.93,9.33266132]
[1730795105763,6.1739,161.97,161.94,9.33266132]
[1730795106378,15.50656132,161.97,161.92,9.33266132]